bitfinex/quotes_SOLUSD_20250520
["timestamp","ask_amount","ask_price","bid_price","bid_amount"]
[1747729331235,6.09277896,166.76,166.7,0.28432314]
[1747729332132,6.09277896,166.76,166.7,18.27432314]
[1747729332339,6.09277896,166.76,166.7,18.933972]
[1747729332641,6.09277896,166.76,166.69,82.8]
[1747729332642,6.09277896,166.76,166.72,18.933972]
[1747729332861,6.09277896,166.76,166.72,18.64964886]
[1747729335642,6.09277896,166.76,166.73,0.28432314]
[1747729335815,6.09277896,166.76,166.75,18.64964886]
[1747729338348,0.096,166.76,166.75,18.64964886]
[1747729339150,6.09264188,166.76,166.75,18.64964886]
[1747729345951,0.096,166.76,166.75,18.933972]
[1747729349844,0.096,166.76,166.75,24.93097349]
[1747729350554,5.99418479,166.83,166.82,26.0]
[1747729350747,5.99418479,166.83,166.82,43.98]
[1747729351555,42.62632611,166.89,166.82,43.98]
[1747729351736,42.62632611,166.89,166.83,18.64964886]
[1747729352541,42.62632611,166.89,166.82,43.98]
[1747729352944,20.96812844,166.92,166.83,18.933972]
[1747729353345,33.6339242,166.92,166.83,18.933972]
[1747729353547,14.9772346,166.92,166.83,18.933972]
[1747729353750,12.66579576,166.91,166.83,18.933972]
[1747729354149,14.9772346,166.92,166.83,18.933972]
[1747729354356,12.66579576,166.91,166.83,18.933972]
[1747729354667,27.64303036,166.92,166.83,18.933972]
[1747729355160,14.9772346,166.92,166.82,26.0]
[1747729355390,12.66579576,166.87,166.83,26.0]
[1747729355565,20.9744112,166.87,166.83,26.0]
[1747729356261,33.64020696,166.87,166.74,41.97713777]
[1747729356567,12.66579576,166.86,166.79,18.64964886]
[1747729356865,12.66579576,166.82,166.73,21.24932185]
[1747729357061,12.66579576,166.82,166.79,17.98]
[1747729357266,12.66579576,166.83,166.79,17.98]
[1747729357563,5.99448507,166.82,166.79,17.98]
[1747729358646,20.98069775,166.82,166.79,17.98]
[1747729360768,5.99448507,166.82,166.79,17.98]
[1747729360972,5.99376648,166.84,166.79,17.98]
[1747729361769,14.98413812,166.85,166.79,17.98]
[1747729364173,20.97754537,166.85,166.78,18.64964886]
[1747729364481,33.64334113,166.85,166.79,43.98]
[1747729364654,20.97754537,166.85,166.79,43.98]
[1747729365575,5.99340725,166.85,166.8,18.64964886]
[1747729365772,5.99340725,166.85,166.81,0.28432314]
[1747729366879,18.65848467,166.87,166.81,0.28432314]
[1747729368480,33.64020696,166.87,166.81,0.28432314]
[1747729368679,18.65920301,166.85,166.79,43.98]
[1747729369071,20.97692538,166.85,166.79,43.98]
[1747729369272,12.66579576,166.83,166.8,17.98]
[1747729369854,12.66579576,166.83,166.77,20.28]
[1747729370075,12.66579576,166.83,166.78,17.98]
[1747729370681,20.98069775,166.82,166.77,20.28]
[1747729370859,20.98069775,166.82,166.78,17.98]
[1747729373684,5.99448507,166.82,166.78,17.98]
[1747729374984,5.99376648,166.84,166.78,17.98]
[1747729375370,5.99376648,166.84,166.79,18.64964886]
[1747729375786,20.97818268,166.84,166.79,18.64964886]
[1747729377587,33.64397844,166.84,166.78,17.98]
[1747729381087,12.66579576,166.83,166.78,17.98]
[1747729381984,20.98069775,166.82,166.78,17.98]
[1747729382791,33.64649351,166.82,166.78,17.98]
[1747729384591,20.98069775,166.82,166.78,17.98]
[1747729386198,14.98621268,166.82,166.78,17.98]
[1747729389203,35.96259889,166.84,166.78,17.98]
[1747729389204,42.63462817,166.84,166.78,17.98]
[1747729390177,12.66579576,166.82,166.76,26.0]
[1747729390379,12.66579576,166.82,166.77,17.98]
[1747729390903,50.94090854,166.86,166.78,18.64964886]
[1747729391091,63.6067043,166.86,166.78,18.64964886]
[1747729391273,50.94090854,166.86,166.78,18.64964886]
[1747729391476,63.6067043,166.86,166.78,18.64964886]
[1747729391709,12.66579576,166.85,166.78,18.64964886]
[1747729392201,12.66579576,166.83,166.76,26.0]
[1747729392498,12.66579576,166.83,166.77,17.98]
[1747729392699,12.66579576,166.82,166.77,17.98]
[1747729393295,12.66579576,166.83,166.77,17.98]
[1747729393506,12.66579576,166.84,166.77,17.98]
[1747729393684,12.66579576,166.85,166.77,17.98]
[1747729394098,12.66579576,166.84,166.77,17.98]
[1747729395297,12.66579576,166.85,166.77,17.98]
[1747729395484,93.57194462,166.86,166.77,17.98]
[1747729395803,93.57194462,166.86,166.78,18.64964886]
[1747729396004,80.90614886,166.86,166.78,18.64964886]
[1747729398199,93.57194462,166.86,166.78,18.64964886]
[1747729401306,80.90614886,166.86,166.78,18.64964886]
[1747729401614,50.94090854,166.86,166.78,18.64964886]
[1747729401800,50.94090854,166.86,166.8,18.64964886]
[1747729402303,12.66579576,166.89,166.8,18.64964886]
[1747729403294,63.59449556,166.9,166.81,0.28432314]
[1747729403501,63.59449556,166.9,166.82,17.98]
[1747729405498,12.66579576,166.89,166.82,17.98]
[1747729405798,12.66579576,166.88,166.82,17.98]
[1747729406514,12.66579576,166.89,166.82,17.98]
[1747729407120,20.97315435,166.88,166.82,17.98]
[1747729407420,12.66579576,166.85,166.75,91.9228943]
[1747729407591,12.66579576,166.83,166.76,56.82964886]
[1747729407793,12.66579576,166.82,166.76,38.18]
[1747729407987,12.66579576,166.81,166.76,38.18]
[1747729408797,12.66579576,166.79,166.75,27.1028943]
[1747729409006,20.9857297,166.78,166.75,27.1028943]
[1747729409200,20.9857297,166.78,166.75,17.98]
[1747729410295,14.98980693,166.78,166.75,17.98]
[1747729411693,14.98980693,166.78,166.72,26.0]
[1747729411895,14.98980693,166.78,166.73,17.98]
[1747729413015,14.98980693,166.78,166.72,26.0]
[1747729413495,14.98980693,166.78,166.73,17.98]
[1747729413701,12.66579576,166.79,166.73,17.98]
[1747729413917,29.97540286,166.81,166.71,20.2]
[1747729413918,12.66579576,166.77,166.71,20.2]
[1747729414110,29.97540286,166.81,166.72,17.98]
[1747729414111,12.66579576,166.76,166.72,17.98]
[1747729414316,12.66579576,166.76,166.69,18.64964886]
[1747729414510,12.66579576,166.76,166.71,17.98]
[1747729415020,12.66579576,166.74,166.68,224.3]
[1747729415204,12.66579576,166.74,166.7,17.98]
[1747729415403,12.66579576,166.74,166.68,17.98]
[1747729415904,20.99202302,166.73,166.67,20.2]
[1747729416225,20.99202302,166.73,166.68,17.98]
[1747729416517,20.99202302,166.73,166.67,20.2]
[1747729416703,20.99202302,166.73,166.68,17.98]
[1747729416906,5.99772086,166.73,166.69,18.64964886]
[1747729417093,5.99700149,166.75,166.7,0.28432314]
[1747729418012,20.98321342,166.8,166.7,0.28432314]
[1747729418530,20.98321342,166.8,166.73,18.64964886]
[1747729418707,20.98321342,166.8,166.74,17.98]
[1747729419723,14.98800959,166.8,166.74,17.98]
[1747729421608,50.9592326,166.8,166.75,17.98]
[1747729423008,20.98321342,166.8,166.75,17.98]
[1747729423732,14.98800959,166.8,166.75,17.98]
[1747729426733,20.98321342,166.8,166.75,17.98]
[1747729428538,14.98800959,166.8,166.75,17.98]
[1747729430336,5.99484443,166.81,166.76,18.64964886]
[1747729430533,5.99448507,166.82,166.76,18.64964886]
[1747729432036,20.98069775,166.82,166.76,18.64964886]
[1747729433940,20.98069775,166.82,166.77,0.28432314]
[1747729434915,21.00092538,166.85,166.77,0.28432314]
[1747729436217,33.66672114,166.85,166.77,0.28432314]
[1747729437041,15.00751813,166.85,166.77,0.28432314]
[1747729437735,27.67331389,166.85,166.77,0.28432314]
[1747729438642,15.00751813,166.85,166.77,0.28432314]
[1747729439238,21.00092538,166.85,166.77,0.28432314]
[1747729440333,50.96796164,166.85,166.77,0.28432314]
[1747729442059,44.97455439,166.85,166.77,0.28432314]
[1747729442961,44.97455439,166.85,166.78,17.98]
[1747729443158,57.64035015,166.85,166.78,17.98]
[1747729443351,12.66579576,166.83,166.78,17.98]
[1747729443867,44.97455439,166.85,166.78,17.98]
[1747729444241,21.00092538,166.85,166.79,18.64964886]
[1747729445571,15.00751813,166.85,166.79,18.64964886]
[1747729446855,15.00751813,166.85,166.78,17.98]
[1747729447055,27.67331389,166.85,166.78,17.98]
[1747729447372,12.66579576,166.84,166.78,17.98]
[1747729447677,20.97944014,166.83,166.78,17.98]
[1747729447979,50.95006892,166.83,166.78,17.98]
[1747729449156,12.66579576,166.82,166.77,20.16]
[1747729449481,12.66579576,166.81,166.76,17.98]
[1747729449655,20.98321342,166.8,166.76,17.98]
[1747729450169,33.64900918,166.8,166.76,17.98]
[1747729450653,20.98321342,166.8,166.76,17.98]
[1747729451660,20.98321342,166.8,166.75,17.98]
[1747729451859,33.64900918,166.8,166.75,17.98]
[1747729452382,63.62502836,166.8,166.74,18.64964886]
[1747729452581,12.66579576,166.78,166.72,20.16]
[1747729452764,12.66579576,166.78,166.74,17.98]
[1747729453073,12.66579576,166.77,166.7,35.1228943]
[1747729453278,12.66579576,166.77,166.71,17.98]
[1747729453891,20.98824658,166.76,166.71,17.98]
[1747729455794,20.98824658,166.76,166.7,9.1228943]
[1747729455795,33.65404234,166.76,166.7,9.1228943]
[1747729455964,12.66579576,166.74,166.7,27.1028943]
[1747729456162,12.66579576,166.75,166.7,27.1028943]
[1747729457379,33.65404234,166.76,166.7,27.1028943]
[1747729457583,20.98824658,166.76,166.71,18.64964886]
[1747729457779,5.99664188,166.76,166.71,18.64964886]
[1747729458084,5.99592277,166.78,166.71,18.64964886]
[1747729458276,20.9857297,166.78,166.71,18.64964886]
[1747729459065,5.99592277,166.78,166.71,18.64964886]
[1747729459268,5.99592277,166.78,166.73,18.64964886]
[1747729460186,20.98321342,166.8,166.73,18.64964886]
[1747729461096,63.62502836,166.8,166.73,18.64964886]
[1747729461793,12.66579576,166.79,166.74,17.98]
[1747729462297,20.9857297,166.78,166.74,17.98]
[1747729462980,20.9857297,166.78,166.75,18.64964886]
[1747729463302,5.99592277,166.78,166.75,18.64964886]
[1747729464798,14.98780953,166.81,166.75,18.64964886]
[1747729466100,12.68979576,166.85,166.76,0.28432314]
[1747729466101,0.024,166.85,166.76,0.28432314]
[1747729467395,0.024,166.85,166.79,18.933972]
[1747729467683,0.024,166.85,166.81,18.64964886]
[1747729469101,0.024,166.85,166.8,38.1]
[1747729469309,0.024,166.85,166.8,17.98]
[1747729470107,63.6337574,166.85,166.8,17.98]
[1747729470281,12.66579576,166.84,166.8,17.98]
[1747729470485,12.66579576,166.83,166.8,17.98]
[1747729470897,12.66579576,166.83,166.77,38.1]
[1747729471509,20.98069775,166.82,166.77,38.1]
[1747729473810,14.98621268,166.82,166.77,38.1]
[1747729476917,27.65200844,166.82,166.77,38.1]
[1747729477417,27.65200844,166.82,166.74,18.933972]
[1747729477601,27.65200844,166.82,166.76,18.64964886]
[1747729478525,63.61891887,166.82,166.76,18.64964886]
[1747729481326,12.66579576,166.79,166.72,20.12]
[1747729481628,12.66579576,166.79,166.73,36.62964886]
[1747729482130,12.66579576,166.79,166.73,17.98]
[1747729482704,12.66579576,166.79,166.72,20.12]
[1747729482910,12.66579576,166.79,166.73,17.98]
[1747729483311,50.96534356,166.78,166.73,17.98]
[1747729484011,20.9857297,166.78,166.73,17.98]
[1747729484218,20.9857297,166.78,166.74,18.64964886]
[1747729484512,31.99592277,166.78,166.74,18.64964886]
[1747729484834,31.99592277,166.78,166.73,36.62964886]
[1747729485299,14.98785563,166.81,166.74,18.933972]
[1747729486425,14.98785563,166.81,166.74,18.64964886]
[1747729486594,14.98785563,166.81,166.73,36.62964886]
[1747729487828,14.98785563,166.81,166.74,18.933972]
[1747729491328,20.97818268,166.84,166.74,24.93130159]
[1747729491520,20.97818268,166.84,166.77,26.0]
[1747729491726,20.97818268,166.84,166.78,36.62964886]
[1747729492334,20.97818268,166.84,166.78,56.70964886]
[1747729492646,5.99376648,166.84,166.79,0.28432314]
[1747729493646,0.024,166.85,166.79,0.28432314]
[1747729494443,0.024,166.85,166.78,56.70964886]
[1747729495130,12.68979576,166.85,166.78,56.70964886]
[1747729495462,20.97818268,166.84,166.78,56.70964886]
[1747729496725,5.99376648,166.84,166.79,0.28432314]
[1747729497438,5.99376648,166.84,166.82,18.64964886]
[1747729497751,0.024,166.85,166.82,18.64964886]
[1747729498648,0.024,166.85,166.78,20.08]
[1747729498944,0.024,166.85,166.81,17.98]
[1747729502628,0.024,166.85,166.82,18.64964886]
[1747729504154,0.024,166.85,166.81,17.98]
[1747729506470,0.024,166.85,166.82,18.64964886]
[1747729516909,0.024,166.85,166.83,0.28432314]
[1747729517290,0.024,166.85,166.84,39.013972]
[1747729520690,0.024,166.85,166.84,38.72964886]
[1747729520890,0.024,166.85,166.84,56.68964886]
[1747729521090,0.024,166.85,166.84,38.04]
[1747729527616,0.024,166.85,166.84,17.96]
[1747729532406,0.024,166.85,166.82,18.64964886]
[1747729532600,0.024,166.85,166.8,20.32432314]
[1747729532601,0.024,166.85,166.8,20.04]
[1747729532808,12.66579576,166.84,166.74,9.1228943]
[1747729533006,12.66579576,166.83,166.75,38.0]
[1747729533203,12.66579576,166.83,166.77,18.64964886]
[1747729533426,12.66579576,166.83,166.77,36.60964886]
[1747729534415,5.99448507,166.82,166.77,36.60964886]
[1747729534724,12.66579576,166.8,166.71,18.64964886]
[1747729534931,12.66579576,166.8,166.76,17.96]
[1747729535227,12.66579576,166.81,166.76,17.96]
[1747729535405,20.98069775,166.82,166.76,17.96]
[1747729535727,12.66579576,166.81,166.76,17.96]
[1747729536722,20.98321342,166.8,166.74,18.64964886]
[1747729536917,12.66579576,166.79,166.73,20.04]
[1747729538218,12.66579576,166.78,166.73,20.04]
[1747729538909,5.9962823,166.77,166.73,20.04]
[1747729539151,5.9962823,166.77,166.74,18.64964886]
[1747729540432,14.98800959,166.8,166.74,18.64964886]
[1747729542932,20.98321342,166.8,166.74,18.64964886]
[1747729545633,33.64900918,166.8,166.73,20.04]
[1747729545815,12.66579576,166.79,166.73,20.04]
[1747729546136,12.66579576,166.79,166.72,17.98]
[1747729548950,12.66579576,166.79,166.72,17.98]
[1747729550031,20.9857297,166.78,166.72,17.98]
[1747729555132,12.66579576,166.76,166.68,20.04]
[1747729555445,12.66579576,166.76,166.69,17.98]
[1747729556539,20.98950523,166.75,166.69,17.98]
[1747729560447,33.65530099,166.75,166.68,64.68964886]
[1747729560646,33.65530099,166.75,166.68,82.66964886]
[1747729561030,20.98950523,166.75,166.68,82.66964886]
[1747729562948,12.66579576,166.7,166.63,18.64964886]
[1747729563139,12.66579576,166.7,166.64,17.98]
[1747729563550,12.66579576,166.71,166.64,17.98]
[1747729564639,20.99580082,166.7,166.64,17.98]
[1747729566155,33.66159658,166.7,166.64,17.98]
[1747729567257,12.66579576,166.69,166.62,46.0]
[1747729567441,12.66579576,166.68,166.62,37.98]
[1747729568858,20.99958,166.67,166.62,37.98]
[1747729570550,20.99958,166.67,166.62,20.0]
[1747729570742,20.99958,166.67,166.62,37.98]
[1747729574664,20.99958,166.67,166.62,20.0]
[1747729576963,20.99958,166.67,166.63,18.64964886]
[1747729578966,14.9997,166.67,166.62,20.0]
[1747729579340,27.66549576,166.67,166.62,20.0]
[1747729579544,27.66549576,166.67,166.61,17.98]
[1747729580467,14.9997,166.67,166.61,17.98]
[1747729580660,14.9997,166.67,166.62,18.64964886]
[1747729581667,14.9997,166.67,166.61,17.98]
[1747729581874,27.66549576,166.67,166.61,17.98]
[1747729583263,20.99958,166.67,166.61,17.98]
[1747729585067,20.99958,166.67,166.62,18.64964886]
[1747729585274,5.99988,166.67,166.62,18.64964886]
[1747729585660,20.9970604,166.69,166.62,18.64964886]
[1747729585973,33.66285616,166.69,166.62,18.64964886]
[1747729588179,12.66579576,166.68,166.6,26.0]
[1747729588367,12.66579576,166.67,166.61,36.64964886]
[1747729589472,21.00084002,166.66,166.61,18.0]
[1747729591978,21.00084002,166.66,166.62,18.64964886]
[1747729592653,21.00084002,166.66,166.61,36.64964886]
[1747729603660,21.00084002,166.66,166.62,18.64964886]
[1747729603865,6.00024,166.66,166.62,18.64964886]
[1747729608869,21.00084002,166.66,166.61,18.0]
[1747729611907,26.0,166.63,166.61,18.0]
[1747729612196,26.0,166.63,166.55,9.1228943]
[1747729612197,14.10684209,166.62,166.55,9.1228943]
[1747729612369,8.10516162,166.61,166.55,9.1228943]
[1747729613072,26.0,166.6,166.55,9.1228943]
[1747729613301,26.0,166.6,166.55,27.1228943]
[1747729613670,21.00966444,166.59,166.55,18.0]
[1747729615001,59.12863241,166.59,166.5,244.4]
[1747729615183,59.12863241,166.59,166.51,18.64964886]
[1747729615383,59.12863241,166.59,166.53,18.64964886]
[1747729615882,51.02347079,166.59,166.53,18.64964886]
[1747729616597,63.70301834,166.59,166.53,18.64964886]
[1747729618198,26.0,166.56,166.5,244.68432314]
[1747729618374,26.0,166.56,166.51,18.64964886]
[1747729618576,38.67954755,166.56,166.52,18.0]
[1747729619504,21.01471029,166.55,166.52,18.0]
[1747729619716,21.01471029,166.55,166.51,36.64964886]
[1747729620511,21.01471029,166.55,166.5,19.96]
[1747729620816,21.01471029,166.55,166.51,18.0]
[1747729620817,33.69425784,166.55,166.51,18.0]
[1747729621172,21.01471029,166.55,166.51,18.0]
[1747729622898,15.01050735,166.55,166.51,18.0]
[1747729624079,12.67954755,166.54,166.47,18.64964886]
[1747729624278,12.67954755,166.54,166.48,18.0]
[1747729624680,21.01723412,166.53,166.48,18.0]
[1747729626005,21.01723412,166.53,166.47,18.64964886]
[1747729626207,21.01723412,166.53,166.48,18.0]
[1747729628610,63.71220843,166.56,166.48,18.0]
[1747729628804,12.67954755,166.55,166.48,18.0]
[1747729630514,21.01597213,166.54,166.48,18.0]
[1747729630896,21.01597213,166.54,166.49,18.64964886]
[1747729633194,6.00456346,166.54,166.5,26.0]
[1747729633509,6.00384245,166.56,166.51,38.873972]
[1747729634085,18.010987,166.7,166.55,0.28432314]
[1747729634287,14.98577158,166.83,166.61,53.95]
[1747729634491,14.98577158,166.83,166.68,0.14216157]
[1747729634492,12.67954755,166.8,166.68,0.14216157]
[1747729634690,12.67954755,166.8,166.67,26.0]
[1747729634905,12.67954755,166.74,166.68,18.0]
[1747729635105,12.67954755,166.73,166.68,18.0]
[1747729635483,12.67954755,166.74,166.68,18.0]
[1747729635686,0.28432314,166.73,166.68,18.0]
[1747729635910,5.99772086,166.73,166.68,18.0]
[1747729636499,5.99772086,166.73,166.68,21.01851987]
[1747729637310,5.99736116,166.74,166.68,21.01851987]
[1747729637492,6.13952273,166.74,166.68,21.01851987]
[1747729638098,18.81907028,166.74,166.68,21.01851987]
[1747729640093,33.81247318,166.74,166.68,21.01851987]
[1747729641014,20.99076406,166.74,166.68,21.01851987]
[1747729641315,5.99736116,166.74,166.68,47.01851987]
[1747729641497,29.97694176,166.8,166.69,18.64964886]
[1747729641815,0.14216157,166.78,166.69,18.64964886]
[1747729642010,0.28432314,166.78,166.69,18.64964886]
[1747729642405,0.28432314,166.77,166.69,18.64964886]
[1747729642606,0.28432314,166.75,166.68,47.01851987]
[1747729643893,20.99076406,166.74,166.68,47.01851987]
[1747729645218,50.97756986,166.74,166.68,47.01851987]
[1747729646218,50.97756986,166.74,166.68,29.01851987]
[1747729647511,20.99076406,166.74,166.69,18.64964886]
[1747729648329,29.98477873,166.76,166.69,18.64964886]
[1747729662333,42.66432628,166.76,166.68,29.01851987]
[1747729662717,42.66432628,166.76,166.69,17.98]
[1747729663029,29.98477873,166.76,166.69,17.98]
[1747729663233,29.98477873,166.76,166.68,29.01851987]
[1747729663531,50.97302531,166.76,166.69,17.98]
[1747729664033,50.97302531,166.76,166.68,29.01851987]
[1747729664328,50.97302531,166.76,166.69,17.98]
[1747729664829,50.97302531,166.76,166.7,17.98]
[1747729665622,50.97302531,166.76,166.68,29.01851987]
[1747729665814,50.97302531,166.76,166.69,17.98]
[1747729666019,50.97302531,166.76,166.68,29.01851987]
[1747729666213,12.67954755,166.74,166.68,46.99851987]
[1747729666522,12.67954755,166.74,166.68,20.99851987]
[1747729666710,12.67954755,166.74,166.68,3.01851987]
[1747729666911,12.96387069,166.75,166.67,43.98]
[1747729667531,50.97756986,166.74,166.67,43.98]
[1747729668812,12.67954755,166.72,166.66,19.88]
[1747729669014,12.96387069,166.71,166.66,37.86]
[1747729669435,12.96387069,166.71,166.66,19.88]
[1747729669634,20.99580082,166.7,166.66,19.88]
[1747729669838,20.99580082,166.7,166.66,22.8966029]
[1747729670030,12.67954755,166.69,166.64,0.7497987]
[1747729670426,12.67954755,166.66,166.64,0.7497987]
[1747729670832,0.28432314,166.68,166.64,0.7497987]
[1747729670833,12.67954755,166.65,166.64,0.7497987]
[1747729671138,12.67954755,166.66,166.64,0.7497987]
[1747729671338,0.28432314,166.68,166.64,0.7497987]
[1747729671339,12.96387069,166.65,166.64,0.7497987]
[1747729671841,18.96447075,166.65,166.64,0.7497987]
[1747729674745,6.2849232,166.65,166.64,0.7497987]
[1747729676538,6.00060006,166.65,166.64,0.7497987]
[1747729678725,14.9997194,166.67,166.64,0.7497987]
[1747729680450,14.9997194,166.67,166.64,18.7297987]
[1747729681448,50.98980201,166.7,166.64,18.7297987]
[1747729683049,20.99580082,166.7,166.65,18.64964886]
[1747729683942,14.99700059,166.7,166.65,18.64964886]
[1747729684346,5.99808061,166.72,166.67,18.64964886]
[1747729685460,14.99520153,166.72,166.67,18.64964886]
[1747729687466,0.28432314,166.71,166.64,0.7497987]
[1747729687758,12.67954755,166.69,166.64,18.7297987]
[1747729688254,12.96387069,166.68,166.64,18.7297987]
[1747729689166,12.67954755,166.67,166.64,18.7297987]
[1747729689337,32.00060006,166.65,166.64,0.7497987]
[1747729693747,6.00060006,166.65,166.64,0.7497987]
[1747729694372,18.96447075,166.65,166.64,0.7497987]
[1747729694743,0.28432314,166.61,166.55,17.98]
[1747729694941,0.28432314,166.59,166.53,17.98]
[1747729695761,12.96387069,166.59,166.53,17.98]
[1747729695938,6.00240096,166.6,166.54,18.64964886]
[1747729696858,6.00240096,166.6,166.55,18.0]
[1747729697072,143.00108043,166.64,166.56,18.64964886]
[1747729697684,6.00108043,166.64,166.56,18.64964886]
[1747729697985,21.00129458,166.66,166.57,6.00348201]
[1747729698887,21.00129458,166.66,166.56,18.64964886]
[1747729699694,33.68084213,166.66,166.56,18.64964886]
[1747729700494,12.67954755,166.65,166.56,18.64964886]
[1747729700981,21.00336053,166.64,166.56,18.64964886]
[1747729701484,21.00336053,166.64,166.56,38.50964886]
[1747729702585,12.96387069,166.63,166.56,19.86]
[1747729702880,21.00714242,166.61,166.56,19.86]
[1747729703059,12.96387069,166.6,166.56,19.86]
[1747729703256,12.96387069,166.6,166.54,2.99286049]
[1747729703585,12.96387069,166.6,166.53,18.0]
[1747729704166,12.96387069,166.6,166.52,18.64964886]
[1747729704474,12.96387069,166.6,166.53,18.0]
[1747729704887,21.00966444,166.59,166.53,18.0]
[1747729705182,33.68921199,166.59,166.53,18.0]
[1747729705376,12.67954755,166.58,166.52,3.04055667]
[1747729705585,12.67954755,166.58,166.51,37.86]
[1747729706082,0.28432314,166.58,166.51,37.86]
[1747729706981,15.00870504,166.57,166.52,18.64964886]
[1747729709789,15.00870504,166.57,166.52,21.59349544]
[1747729714687,6.00276127,166.59,166.52,21.59349544]
[1747729714883,6.00276127,166.59,166.52,47.59349544]
[1747729715884,6.00276127,166.59,166.52,53.59875741]
[1747729716480,15.00668102,166.6,166.52,53.59875741]
[1747729717500,15.00668102,166.6,166.53,18.64964886]
[1747729717872,21.28894415,166.63,166.53,18.64964886]
[1747729718485,21.28894415,166.63,166.53,24.65432489]
[1747729718486,21.00462101,166.63,166.53,24.65432489]
[1747729719707,21.00462101,166.63,166.53,18.64964886]
[1747729720991,33.68416856,166.63,166.53,18.64964886]
[1747729722204,12.67954755,166.62,166.53,18.64964886]
[1747729722382,12.67954755,166.61,166.54,18.0]
[1747729724187,21.00966444,166.59,166.53,36.64964886]
[1747729726087,63.70301834,166.59,166.53,18.0]
[1747729726582,63.70301834,166.59,166.52,28.94384658]
[1747729727614,21.00966444,166.59,166.53,18.64964886]
[1747729728311,12.67954755,166.58,166.52,2.94384658]
[1747729728611,12.67954755,166.55,166.5,0.75042916]
[1747729729580,21.01597213,166.54,166.5,0.75042916]
[1747729730000,21.01597213,166.54,166.5,3.81497731]
[1747729730203,21.01597213,166.54,166.5,0.75042916]
[1747729731503,15.01140867,166.54,166.5,0.75042916]
[1747729733805,6.00384245,166.56,166.51,18.64964886]
[1747729734108,21.01344859,166.56,166.51,18.64964886]
[1747729734617,6.00384245,166.56,166.51,18.64964886]
[1747729735695,15.0074628,166.59,166.51,18.64964886]
[1747729741345,6.00240096,166.6,166.56,26.0]
[1747729741502,6.00240096,166.6,166.57,18.64964886]
[1747729742737,15.00489899,166.62,166.57,18.64964886]
[1747729743547,6.00132029,166.63,166.57,18.64964886]
[1747729744637,21.00288279,166.65,166.57,18.64964886]
[1747729745927,21.00288279,166.65,166.57,24.6531127]
[1747729746641,21.00288279,166.65,166.57,18.64964886]
[1747729746843,21.00288279,166.65,166.57,24.65311133]
[1747729747740,21.00288279,166.65,166.58,18.64964886]
[1747729748040,15.00228273,166.65,166.58,18.64964886]
[1747729748539,15.00228273,166.65,166.57,24.65311862]
[1747729748838,15.00228273,166.65,166.57,18.64964886]
[1747729751452,15.00228273,166.65,166.57,24.65309596]
[1747729751826,15.00228273,166.65,166.61,18.64964886]
[1747729760654,20.99958,166.67,166.61,18.64964886]
[1747729763154,12.96387069,166.65,166.59,19.8]
[1747729763335,12.67954755,166.62,166.58,82.8]
[1747729763732,12.67954755,166.63,166.58,82.8]
[1747729763945,21.00588164,166.62,166.58,82.8]
[1747729767968,21.00588164,166.62,166.59,18.64964886]
[1747729768282,6.00168047,166.62,166.59,18.64964886]
[1747729768967,21.00296365,166.65,166.57,18.64964886]
[1747729770264,15.00236359,166.65,166.57,18.64964886]
[1747729771464,21.00296365,166.65,166.57,18.64964886]
[1747729774968,15.00236359,166.65,166.57,18.64964886]
[1747729776574,15.00236359,166.65,166.59,18.64964886]
[1747729777258,20.99832012,166.68,166.59,18.64964886]
[1747729778887,14.99880009,166.68,166.59,24.65227565]
[1747729779181,14.99880009,166.68,166.59,18.64964886]
[1747729780176,27.67834764,166.68,166.59,18.64964886]
[1747729780877,33.67786767,166.68,166.59,18.64964886]
[1747729781581,63.67546786,166.68,166.59,18.64964886]
[1747729781771,12.67954755,166.67,166.59,18.64964886]
[1747729781969,12.67954755,166.66,166.59,18.64964886]
[1747729783160,21.00210021,166.65,166.59,18.64964886]
[1747729786001,15.00150015,166.65,166.59,18.64964886]
[1747729787374,27.6810477,166.65,166.59,18.64964886]
[1747729787573,15.00150015,166.65,166.59,18.64964886]
[1747729789078,12.67954755,166.64,166.59,18.64964886]
[1747729789385,0.28432314,166.59,166.53,0.49387443]
[1747729789585,12.67954755,166.57,166.53,0.49387443]
[1747729789789,12.67954755,166.58,166.53,0.49387443]
[1747729790092,21.01092567,166.58,166.53,0.49387443]